fUST/lending_fUST_20260103
["ID","MTS","AMOUNT","RATE_DAILY","PERIOD"]
[400354077,1767420640416,-100000.0,0.00014736,2]
[400354079,1767420640426,-2236.37206163,0.0001476,2]
[400354081,1767420640435,-272.75446201,0.00014776,2]
[400354082,1767420640445,-500.0,0.00014794,2]
[400354084,1767420640454,-1500.0,0.00014795,2]
[400354086,1767420640464,-1500.0,0.00014795,2]
[400354088,1767420640474,-857.94,0.000148,2]
[400354090,1767420640483,-500.0,0.00014916,2]
[400354091,1767420640492,-160.0,0.00014969,9]
[400354092,1767420640502,-302.58566204,0.00015,2]
[400354093,1767420640512,-1000.0,0.00015,2]
[400354094,1767420640521,-374.591672,0.00015068,2]
[400354095,1767420640531,-800.0,0.00015068,2]
[400354096,1767420640540,-857.94,0.000151,2]
[400354097,1767420640550,-168.0,0.00015105,2]
[400354098,1767420640559,-168.0,0.00015119,2]
[400354099,1767420640568,-160.0,0.00015183,10]
[400354100,1767420640578,-168.0,0.00015189,2]
[400354101,1767420640588,-168.0,0.00015265,2]
[400354102,1767420640597,-168.0,0.00015278,2]
[400354103,1767420640607,-168.0,0.00015308,2]
[400354104,1767420640617,-613.08,0.00015337,2]
[400354105,1767420640627,-429.05170525,0.00015342,3]
[400354106,1767420640636,-2000.0,0.00015342,2]
[400354107,1767420640646,-1331.90485238,0.00015342,2]
[400354108,1767420640656,-160.0,0.00015398,11]
[400354109,1767420640666,-857.94,0.000155,2]
[400354110,1767420640675,-160.0,0.00015612,12]
[400354111,1767420640684,-168.0,0.00015621,2]
[400354112,1767420640693,-2308.67395751,0.0001567,2]
[400354113,1767420640703,-857.94,0.000158,2]
[400354114,1767420640712,-160.0,0.00015827,13]
[400354115,1767420640721,-2500.0,0.0001589,2]
[400354116,1767420640731,-3000.0,0.00016,2]
[400354117,1767420640740,-3000.0,0.0001601,2]
[400354118,1767420640749,-3000.0,0.0001602,2]
[400354119,1767420640758,-3000.0,0.0001603,2]
[400354120,1767420640767,-3000.0,0.0001604,2]
[400354121,1767420640777,-160.0,0.00016041,14]
[400354122,1767420640786,-167.43554994,0.00016041,5]
[400354123,1767420640795,-3000.0,0.0001605,2]
[400354124,1767420640805,-3000.0,0.0001606,2]
[400354125,1767420640814,-3000.0,0.0001607,2]
[400354126,1767420640823,-168.0,0.00016071,2]
[400354127,1767420640832,-3000.0,0.0001608,2]
[400354128,1767420640842,-3000.0,0.0001609,2]
[400354129,1767420640851,-3000.0,0.000161,2]
[400354130,1767420640860,-857.94,0.000161,2]
[400354131,1767420640871,-168.0,0.00016104,2]
[400354132,1767420640881,-2026.47098039,0.00016107,2]
[400354133,1767420640890,-3000.0,0.0001611,2]
[400354134,1767420640901,-168.0,0.00016113,2]
[400354135,1767420640914,-3000.0,0.0001612,2]
[400354136,1767420640924,-3000.0,0.0001613,2]
[400354137,1767420640934,-2026.47098032,0.00016133,2]
[400354138,1767420640945,-2376.01542337,0.00016138,2]
[400354139,1767420640956,-3000.0,0.0001614,2]
[400354140,1767420640969,-3000.0,0.0001615,2]
[400354141,1767420640979,-2026.47098032,0.00016158,2]
[400354142,1767420640990,-3000.0,0.0001616,2]
[400354143,1767420641001,-1600.0,0.00016164,2]
[400354144,1767420641011,-3000.0,0.0001617,2]
[400354145,1767420641022,-3000.0,0.0001618,2]
[400354146,1767420641032,-2026.47098032,0.00016184,2]
[400354147,1767420641043,-3000.0,0.0001619,2]
[400354148,1767420641056,-3000.0,0.000162,2]
[400354149,1767420641068,-600.0,0.00016207,2]
[400354150,1767420641078,-2026.47098032,0.0001621,2]
[400354151,1767420641089,-3035.113432,0.0001621,2]
[400354152,1767420641098,-2026.47098032,0.00016235,2]
[400354153,1767420641109,-168.0,0.00016237,2]
[400354154,1767420641120,-2026.47098032,0.00016261,2]
[400354155,1767420641131,-168.0,0.00016282,2]
[400354156,1767420641141,-1288.73053609,0.00016282,2]
[400354157,1767420641153,-2026.47098032,0.00016287,2]
[400354158,1767420641165,-168.0,0.00016291,2]
[400354159,1767420641176,-715.27,0.00016296,2]
[400354160,1767420641187,-2026.47098032,0.00016312,2]
[400354161,1767420641198,-2026.47098032,0.00016338,2]
[400354162,1767420641209,-168.0,0.00016398,2]
[400354163,1767420641219,-857.94,0.000164,2]
[400354164,1767420641229,-913.8,0.00016438,2]
[400354165,1767420641240,-500.0,0.00016438,2]
[400354166,1767420641250,-1370.24099002,0.00016438,2]
[400354167,1767420641260,-1370.24099002,0.00016438,2]
[400354168,1767420641272,-593.63028619,0.00016438,2]
[400354169,1767420641283,-1370.24099002,0.00016438,2]
[400354170,1767420641292,-1370.24099002,0.00016438,2]
[400354171,1767420641302,-1370.24099002,0.00016438,2]
[400354172,1767420641311,-1370.24099002,0.00016438,2]
[400354173,1767420641320,-1370.24099002,0.00016438,2]
[400354174,1767420641329,-1370.24099002,0.00016438,2]
[400354175,1767420641339,-1370.24099002,0.00016438,2]
[400354176,1767420641349,-586.41612881,0.00016438,2]
[400354177,1767420641365,-302.0,0.00016438,2]
[400354178,1767420641498,-220.78901066,0.00012675,2]
[400354179,1767420641507,-197.93988728,0.00016438,2]
[400354180,1767420641518,-283.88497393,0.00016438,2]
[400354181,1767420641527,-1370.24099002,0.00016438,2]
[400354182,1767420641537,-1370.24099002,0.00016438,2]
[400354183,1767420641546,-1370.24099002,0.00016438,2]
[400354184,1767420641555,-1370.24099002,0.00016438,2]
[400354185,1767420641565,-1370.24099002,0.00016438,2]
[400354186,1767420641574,-472.86862153,0.00016438,2]
[400354187,1767420642059,-3e-08,0.00016438,2]
[400354202,1767420645829,-500.0,0.00016438,2]
[400354222,1767420730551,201.2,0.00012006,2]
[400354223,1767420731162,-516.71581332,0.00012675,2]
[400354224,1767420732746,-67.8898728,0.00012675,2]
[400354225,1767420732773,-111.01035851,0.00012675,2]
[400354226,1767420734182,-390.99513034,0.00012675,2]
[400354227,1767420736199,-392.3009956,0.00012675,2]
[400354228,1767420739675,-183.13722352,0.00012675,2]
[400354229,1767420739699,-67.87670615,0.00012675,2]
[400354230,1767420741266,-238.27527858,0.00012675,2]
[400354231,1767420745042,-196.49940614,0.00012675,2]
[400354232,1767420746572,-108.8039948,0.00012675,2]
[400354233,1767420746602,-138.51586801,0.00012675,2]
[400354234,1767420749883,-316.72187755,0.00012675,2]
[400354235,1767420806762,193.52,0.00012377,2]
[400354237,1767420882289,186.13,0.00012345,2]
[400354240,1767420913142,171.17749052,0.00026652,120]
[400354241,1767420958621,179.03,0.00012364,2]
[400354242,1767420969934,-251.19992171,0.00013196,2]
[400354243,1767420974519,-235.62681107,0.00013196,2]
[400354244,1767420975595,869.0,0.00019,120]
[400354245,1767420976784,-364.56012056,0.00013196,2]
[400354246,1767420982439,-410.55942354,0.00013196,2]
[400354247,1767420986091,-272.25525718,0.00013196,2]
[400354248,1767420990159,-162.47073191,0.00013196,2]
[400354249,1767420991809,-208.39137968,0.00013196,2]
[400354250,1767420993173,-314.16268127,0.00013196,2]
[400354251,1767421014914,-300.0,0.00013196,2]
[400354252,1767421033017,172.19,0.00012358,2]
[400354253,1767421033697,-209.5161984,0.00013196,2]
[400354254,1767421033720,-61.87446096,0.00013246,2]
[400354255,1767421059920,-296.11339274,0.00013113,2]
[400354256,1767421062158,-223.1,0.00013113,2]
[400354257,1767421064842,-175.81545205,0.00013113,2]
[400354258,1767421070309,-223.1,0.00013113,2]
[400354259,1767421074652,-339.19355815,0.00013113,2]
[400354260,1767421080021,-300.0,0.00013113,2]
[400354261,1767421081619,-167.84760442,0.00013113,2]
[400354264,1767421085621,-194.86222408,0.00013113,2]
[400354265,1767421087157,-250.35301802,0.00013113,2]
[400354266,1767421090413,-48.82759362,0.00013113,2]
[400354267,1767421090436,-159.19534197,0.00013246,2]
[400354268,1767421090460,-104.97719948,0.00013309,2]
[400354269,1767421091769,692.47,0.000126,2]
[400354270,1767421093314,-201.59455142,0.00013,2]
[400354271,1767421095326,-490.87544858,0.00013,2]
[400354272,1767421095350,-30.0333523,0.000133,2]
[400354273,1767421101323,-268.6369438,0.000133,2]
[400354274,1767421104134,-334.22143082,0.000133,2]
[400354275,1767421107515,161.61,0.0001233,2]
[400354276,1767421181013,155.44,0.00011996,2]
[400354277,1767421194997,-434.40980476,0.0001279,2]
[400354278,1767421198154,-300.0,0.0001279,2]
[400354279,1767421200917,-215.18080952,0.0001279,2]
[400354280,1767421206144,-175.20227849,0.0001279,2]
[400354281,1767421208931,-200.18696963,0.0001279,2]
[400354282,1767421215824,-211.95799355,0.0001279,2]
[400354283,1767421218123,-269.06678174,0.0001279,2]
[400354284,1767421221860,-170.42599167,0.0001279,2]
[400354285,1767421223462,-189.20691633,0.0001279,2]
[400354286,1767421225482,-216.57968593,0.0001279,2]
[400354287,1767421231551,-190.34432457,0.0001279,2]
[400354288,1767421233523,-246.37168283,0.0001279,2]
[400354289,1767421238044,-164.37629976,0.0001279,2]
[400354290,1767421240733,-243.25603843,0.0001279,2]
[400354291,1767421243484,-214.79345135,0.0001279,2]
[400354292,1767421245675,-247.48270903,0.0001279,2]
[400354293,1767421254069,-412.576898,0.0001279,2]
[400354294,1767421257931,-190.60226725,0.0001279,2]
[400354295,1767421261754,-231.53388265,0.0001279,2]
[400354296,1767421264029,-202.61567037,0.0001279,2]
[400354297,1767421265409,-196.07388025,0.0001279,2]
[400354298,1767421271236,-77.75566389,0.0001279,2]
[400354299,1767421271260,-235.52615159,0.0001279,2]
[400354301,1767421274467,-365.47384841,0.0001279,2]
[400354302,1767421274491,-66.27279087,0.00012854,2]
[400354303,1767421300900,-150.37561601,0.00012854,2]
[400354304,1767421300925,-199.34,0.00013311,2]
[400354305,1767421300948,-51.43104837,0.000136,2]
[400354306,1767421344894,-189.19,0.00013404,2]
[400354307,1767421344917,-7.9148445,0.000136,2]
[400354308,1767421349676,-326.35917413,0.000136,2]
[400354309,1767421353920,-194.93439634,0.000136,2]
[400354310,1767421357688,-123.94158503,0.000136,2]
[400354311,1767421357712,-69.64469186,0.00013688,2]
[400354312,1767421359830,-204.59565458,0.00013688,2]
[400354313,1767421361391,-202.13744289,0.00013688,2]
[400354314,1767421365492,-250.20211472,0.00013688,2]
[400354315,1767421368137,-315.08676262,0.00013688,2]
[400354316,1767421368162,-127.97194215,0.00013698,2]
[400354317,1767421374001,-172.02805785,0.00013698,2]
[400354318,1767421374045,-116.2984694,0.00013698,2]
[400354319,1767421377775,-183.7015306,0.00013698,2]
[400354320,1767421377801,-127.76155075,0.00013699,2]
[400354321,1767421381627,-186.55116316,0.00013699,2]
[400354322,1767421383246,-159.57653147,0.00013698,2]
[400354323,1767421385860,-140.42346853,0.00013698,2]
[400354324,1767421385882,-152.88510601,0.00013699,2]
[400354325,1767421389778,-268.1597608,0.00013699,2]
[400354326,1767421391788,-335.29903501,0.00013699,2]
[400354327,1767421393344,-188.78153443,0.00013699,2]
[400354328,1767421398743,-152.79,0.000136,2]
[400354329,1767421398767,-82.70497773,0.00013699,2]
[400354330,1767421401158,-179.56,0.00013316,2]
[400354331,1767421401181,-38.46081161,0.00013699,2]
[400354332,1767421406425,-169.32631006,0.00013698,2]
[400354333,1767421407947,-258.29836316,0.00013698,2]
[400354334,1767421413868,-182.41626541,0.00013698,2]
[400354335,1767421415424,-197.23411541,0.00013698,2]
[400354336,1767421418079,-165.15959677,0.00013698,2]
[400354337,1767421423151,-197.23411541,0.00013698,2]
[400354377,1767421646429,-170.41,0.00013351,2]
[400354378,1767421646455,-212.31543874,0.00013476,2]
[400354379,1767421646479,-38.23080386,0.000136,2]
[400354382,1767421647888,-154.50220062,0.000136,2]
[400354399,1767421674896,-319.49131589,0.00013464,2]
[400354531,1767421832643,-161.74,0.00013314,2]
[400354532,1767421832652,-236.26,0.00013464,2]
[400354542,1767421838617,-19.70712733,0.00013464,2]
[400354543,1767421838628,-150.39,0.000136,2]
[400354544,1767421838638,-1200.0,0.00013698,2]
[400354545,1767421838647,-300.0,0.00013698,2]
[400354546,1767421838657,-1391.96802798,0.00013699,2]
[400354602,1767421841994,-3e-08,0.00013699,2]
[400354625,1767421842210,-457.94999997,0.00013699,2]
[400355070,1767421846513,-1769.47803252,0.00013699,2]
[400355072,1767421846524,-3230.53092589,0.00013699,2]
[400355744,1767421869515,-1772.46907411,0.00013699,2]
[400355745,1767421869548,-1164.980461,0.00013699,2]
[400355746,1767421869583,-500.0,0.00013699,2]
[400355747,1767421869616,-500.0,0.00013699,2]
[400355748,1767421869648,-300.0,0.00013753,2]
[400355749,1767421875379,-212.85034978,0.00013699,2]
[400355750,1767421875420,-2923.05666666,0.00013754,2]
[400355751,1767421875542,-1815.85736179,0.00013854,2]
[400355753,1767421879025,-591.78,0.000136,2]
[400355754,1767421879069,-8816.45,0.00013854,2]
[400355755,1767421889021,200.0,0.0001,3]
[400355757,1767421939162,152.63,0.000126,2]
[400355758,1767421997718,583.0,0.000126,2]
[400355759,1767422059253,152.08,0.000126,2]
[400355762,1767422873524,-8912.3,0.00012696,2]
[400355763,1767422873976,-790.81190798,0.00012696,2]
[400355764,1767422879788,-183.62270644,0.00012696,2]
[400355765,1767422883022,-1566.29268318,0.00012696,2]
[400355766,1767422949947,-173.31490018,0.00013273,2]
[400355807,1767423031721,-326.68509982,0.00013273,2]
[400355809,1767423031731,-500.0,0.00013273,2]
[400355811,1767423031740,-17.47395744,0.00013273,2]
[400355813,1767423031751,-258.78237779,0.00013273,2]
[400355817,1767423031787,-223.74366477,0.00013273,2]
[400355819,1767423031796,-208.59334279,0.00013282,2]
[400355821,1767423031806,-25.90055302,0.00013314,2]
[400355835,1767423037750,-300.0,0.00013673,2]
[400355836,1767423037760,-300.0,0.00013698,2]
[400355837,1767423037770,-330.734172,0.00013699,2]
[400355838,1767423037779,-470.3499274,0.00013699,2]
[400355839,1767423037788,-500.0,0.00013699,2]
[400355840,1767423037797,-481.24738406,0.00013699,2]
[400355841,1767423037809,-18.75261594,0.00013699,2]
[400355842,1767423037819,-500.0,0.00013699,2]
[400355843,1767423037828,-500.0,0.00013753,2]
[400355844,1767423037837,-428.01876997,0.00013753,2]
[400355845,1767423037847,-500.0,0.00013753,2]
[400355846,1767423037858,-500.0,0.00013753,2]
[400355847,1767423037867,-500.0,0.00013753,2]
[400355848,1767423037876,-500.0,0.00013753,2]
[400355849,1767423037886,-500.0,0.00013753,2]
[400355850,1767423037895,-409.22398029,0.00013753,2]
[400355851,1767423037904,-500.0,0.00013753,2]
[400355852,1767423037913,-500.0,0.00013753,2]
[400355853,1767423037924,-500.0,0.00013753,2]
[400355854,1767423037933,-51.03705519,0.00013753,2]
[400355855,1767423037955,-448.96294481,0.00013753,2]
[400355856,1767423037965,-500.0,0.00013753,2]
[400355857,1767423037974,-232.38243626,0.00013753,2]
[400355858,1767423037987,-267.61756374,0.00013753,2]
[400355859,1767423037997,-461.70261931,0.00013753,2]
[400355886,1767423045475,-179.49,0.00013434,2]
[400355889,1767423045485,-38.29738069,0.00013753,2]
[400355891,1767423045496,-500.0,0.00013753,2]
[400355893,1767423045506,-500.0,0.00013753,2]
[400355895,1767423045515,-199.92833931,0.00013753,2]
[400355929,1767423104917,164.43404188,0.00028767,120]
[400355930,1767423159969,-158.91724763,0.0001314,2]
[400355931,1767423164751,-237.08053768,0.0001314,2]
[400355932,1767423166815,-500.0,0.0001314,2]
[400355933,1767423169758,-217.442454,0.0001314,2]
[400355934,1767423172802,-271.74674311,0.0001314,2]
[400355935,1767423174928,-291.74497095,0.0001314,2]
[400355936,1767423181041,-205.10608061,0.0001314,2]
[400355937,1767423183288,-360.92865171,0.0001314,2]
[400355938,1767423184138,-2757.03331431,0.0001314,2]
[400355940,1767423249903,-209.94513884,0.00013206,2]
[400355941,1767423249927,-205.35269904,0.00013273,2]
[400355942,1767423252788,-207.30691018,0.00013273,2]
[400355943,1767423254982,-87.34039078,0.00013273,2]
[400355944,1767423255006,-500.0,0.00013273,2]
[400355945,1767423255031,-179.59440312,0.00013273,2]
[400355946,1767423256547,-169.33706153,0.00013273,2]
[400355947,1767423256930,545.68476901,0.00013206,2]
[400355948,1767423260921,-151.06853535,0.00013273,2]
[400355949,1767423260944,-43.89775101,0.00013273,2]
[400355950,1767423263200,-200.52,0.00013273,2]
[400355951,1767423265888,-160.77133971,0.00013273,2]
[400356006,1767423324942,-94.81090928,0.00013273,2]
[400356007,1767423324975,-82.21198243,0.00013273,2]
[400356008,1767423327619,-417.78801757,0.00013273,2]
[400356009,1767423327645,-165.21198243,0.0001338,2]
[400356010,1767423459984,-500.0,0.00013273,2]
[400356011,1767423460008,-500.0,0.00013273,2]
[400356012,1767423460032,-29.09501757,0.0001338,2]
[400356013,1767423460059,-183.62270644,0.0001338,2]
[400356014,1767423460083,-6.02388106,0.00013614,2]
[400356015,1767423462737,-155.43,0.00013573,2]
[400356016,1767423464311,-169.20118282,0.00013573,2]
[400356017,1767423470219,-226.5,0.00013573,2]
[400356018,1767423472897,-300.0,0.00013573,2]
[400356019,1767423478206,-161.82813265,0.00013573,2]
[400356020,1767423481588,-769.05225211,0.00013573,2]
[400356021,1767423481614,-164.32611894,0.00013614,2]
[400356022,1767423481640,-373.0989242,0.00013651,2]
[400356023,1767423485469,-205.74623607,0.00013594,2]
[400356024,1767423485495,-37.03356212,0.00013651,2]
[400356025,1767423486994,-50.86751368,0.00013651,2]
[400356026,1767423487019,-209.47114661,0.00013651,2]
[400356027,1767423489192,-90.52885339,0.00013651,2]
[400356028,1767423489218,-61.05256139,0.00013652,2]
[400356029,1767423493951,-238.56057758,0.00013652,2]
[400356030,1767423493976,-139.1254363,0.00013652,2]
[400356031,1767423497185,-147.3313499,0.00013652,2]
[400356032,1767423497219,-21.25443352,0.00013652,2]
[400356033,1767423502105,-190.95421658,0.00013273,2]
[400356034,1767423504765,-46.41007765,0.00013273,2]
[400356035,1767423504795,-342.96658587,0.00013652,2]
[400356036,1767423509862,-135.77898061,0.00013652,2]
[400356037,1767423509889,-54.68101939,0.00013652,2]
[400356038,1767423512021,-300.0,0.00013652,2]
[400356039,1767423513526,-145.31898061,0.00013652,2]
[400356040,1767423513554,-437.0117756,0.00013652,2]
[400356041,1767423624990,-274.52523752,0.00013273,2]
[400356044,1767423717438,-225.47476248,0.00013273,2]
[400356045,1767423717471,-194.30789999,0.0001338,2]
[400356046,1767423717520,-1271.70741973,0.00013516,2]
[400356047,1767423717557,-2442.73346402,0.00013573,2]
[400356048,1767423717698,-1185.87813855,0.00013573,2]
[400356049,1767423801007,-585.86,0.00013,2]
[400356050,1767423817417,-201.63131135,0.0001315,2]
[400356051,1767423932771,-153.59,0.00013,2]
[400356052,1767423940194,158.51987641,0.00028767,120]
[400356053,1767424037096,574.15,0.00013,2]
[400356054,1767424079421,280.91,6.993e-05,2]
[400356055,1767424079688,280.91,6.993e-05,2]
[400356058,1767424175709,1500.0,0.00010959,2]
[400356059,1767424189792,1500.0,0.00010959,2]
[400356060,1767424197120,1500.0,0.00012472,2]
[400356085,1767424231915,-500.0,0.00013273,2]
[400356086,1767424231926,-114.35401849,0.00013273,2]
[400356093,1767424237937,-148.28168728,0.00013273,2]
[400356094,1767424237949,-197.59868512,0.00013286,2]
[400356095,1767424237959,-562.67,0.000136,2]
[400356096,1767424237968,-1581.43571991,0.00013671,2]
[400356097,1767424237980,-464.27205049,0.00013671,2]
[400356098,1767424237990,-437.36429423,0.00013673,2]
[400356100,1767424238000,-500.0,0.00013699,2]
[400356102,1767424238010,-500.0,0.00013699,2]
[400356104,1767424238020,-500.0,0.00013699,2]
[400356105,1767424238030,-161.68,0.00013749,2]
[400356106,1767424238040,-438.0319061,0.000138,2]
[400356112,1767424240811,-3e-08,0.000138,2]
[400356126,1767424244971,-3282.68801519,0.000138,2]
[400356127,1767424244982,-1000.0,0.00013821,2]
[400356128,1767424244992,-640.84858442,0.00013875,2]
[400356129,1767424245002,-76.46340039,0.00013875,2]
[400356157,1767424936234,169.29286,6.287e-05,2]
[400356158,1767424936400,169.29286,0.00012573,2]
[400356165,1767425243102,3718.27428,0.00013,2]
[400356166,1767425243132,1281.72572,0.00013,2]
[400356168,1767425275227,-5000.0,0.00013228,2]
[400356170,1767425290771,0.01,0.00013228,2]
[400356171,1767425290800,4999.99,0.00013228,2]
[400356174,1767425339245,-197.89,0.00013039,2]
[400356177,1767425370436,-151.04,0.00013,2]
[400356183,1767425402844,-190.33,0.00013031,2]
[400356184,1767425418712,542.96,0.00013,2]
[400356230,1767425438661,-193.64671142,0.00013152,2]
[400356231,1767425438671,-500.0,0.00013273,2]
[400356232,1767425438681,-500.0,0.00013273,2]
[400356233,1767425438694,-542.96,0.000133,2]
[400356235,1767425438704,-1181.37964225,0.00013536,2]
[400356237,1767425438717,-818.62035775,0.00013536,2]
[400356238,1767425438726,-2000.0,0.00013536,2]
[400356240,1767425438736,-2000.0,0.00013564,2]
[400356242,1767425438746,-209.72919728,0.0001357,2]
[400356244,1767425438757,-200.51975034,0.0001357,2]
[400356245,1767425438768,-500.0,0.0001357,2]
[400356246,1767425438777,-550.0,0.0001357,2]
[400356247,1767425438787,-500.0,0.0001357,2]
[400356248,1767425438798,-406.74683954,0.0001357,2]
[400356249,1767425438808,-427.15128405,0.0001357,2]
[400356250,1767425438818,-52.03871372,0.0001357,2]
[400356251,1767425439166,-447.96128628,0.0001357,2]
[400356252,1767425439177,-328.03904687,0.0001357,2]
[400356253,1767425439190,-500.0,0.0001357,2]
[400356254,1767425439199,-419.4314299,0.0001357,2]
[400356255,1767425439209,-500.0,0.0001357,2]
[400356256,1767425439219,-500.20865463,0.0001357,2]
[400356257,1767425439229,-500.0,0.0001357,2]
[400356258,1767425439239,-500.0,0.0001357,2]
[400356259,1767425439249,-500.0,0.0001357,2]
[400356260,1767425439258,-500.0,0.0001357,2]
[400356261,1767425439270,-500.0,0.0001357,2]
[400356262,1767425439280,-500.0,0.0001357,2]
[400356263,1767425439290,-417.43637054,0.0001357,2]
[400356264,1767425439300,-500.0,0.0001357,2]
[400356265,1767425439310,-500.0,0.0001357,2]
[400356266,1767425439321,-500.0,0.0001357,2]
[400356267,1767425439331,-500.0,0.0001357,2]
[400356268,1767425439340,-500.0,0.0001357,2]
[400356269,1767425439350,-339.27967698,0.0001357,2]
[400356270,1767425439359,-500.0,0.0001357,2]
[400356271,1767425439372,-500.0,0.0001357,2]
[400356272,1767425439382,-500.0,0.0001357,2]
[400356273,1767425439392,-500.0,0.0001357,2]
[400356274,1767425439402,-500.0,0.0001357,2]
[400356275,1767425439412,-500.0,0.0001357,2]
[400356276,1767425439423,-500.0,0.0001357,2]
[400356277,1767425439432,-500.0,0.0001357,2]
[400356278,1767425439447,-500.0,0.0001357,2]
[400356279,1767425439457,-500.0,0.0001357,2]
[400356280,1767425439466,-500.0,0.0001357,2]
[400356281,1767425439476,-500.0,0.0001357,2]
[400356282,1767425439486,-520.83857422,0.00013599,2]
[400356297,1767425444978,-2734.7913569,0.00013599,2]
[400356298,1767425444990,-542.96,0.000136,2]
[400356299,1767425445001,-2480.64123122,0.00013605,2]
[400356300,1767425445012,-300.0,0.00013673,2]
[400356301,1767425445023,-475.0,0.00013688,2]
[400356302,1767425445036,-1106.731437,0.00013699,2]
[400356303,1767425445047,-500.0,0.00013699,2]
[400356304,1767425445058,-500.0,0.00013699,2]
[400356305,1767425445069,-500.0,0.00013821,2]
[400356306,1767425445079,-5859.87597488,0.00013876,2]
[400356315,1767425446053,-5323.05824045,0.00013876,2]
[400356323,1767425446381,-608.11491716,0.00013876,2]
[400356324,1767425481754,-155.86,0.000129,2]
[400356327,1767425497494,-155.86,0.000132,2]
[400356328,1767425497531,-213.31,0.00013416,2]
[400356333,1767425522575,300.0,0.00013469,2]
[400356338,1767425555498,500.0,0.00013469,2]
[400356339,1767425555570,500.0,0.00013469,2]
[400356340,1767425555611,500.0,0.00013469,2]
[400356341,1767425555730,500.0,0.00013469,2]
[400356342,1767425555801,500.0,0.00013469,2]
[400356343,1767425555977,500.0,0.00013469,2]
[400356345,1767425556135,500.0,0.00013469,2]
[400356346,1767425556174,500.0,0.00013469,2]
[400356347,1767425556222,179.54424721,0.00013469,2]
[400356348,1767425556272,500.0,0.00013469,2]
[400356349,1767425556383,500.0,0.00013469,2]
[400356350,1767425556422,500.0,0.00013469,2]
[400356351,1767425556461,500.0,0.00013469,2]
[400356352,1767425557035,500.0,0.00013469,2]
[400356353,1767425557095,500.0,0.00013469,2]
[400356354,1767425559609,268.60404117,0.00013469,2]
[400356355,1767425559652,500.0,0.00013469,2]
[400356356,1767425559692,259.31751784,0.00013469,2]
[400356357,1767425559741,405.17265411,0.00013469,2]
[400356358,1767425559791,349.03153967,0.00013469,2]
[400356359,1767425585137,10000.0,0.0001298,2]
[400356360,1767425593224,0.01,0.0001298,2]
[400356361,1767425593249,9999.99,0.0001298,2]
[400356362,1767425599484,0.02,0.0001298,2]
[400356363,1767425599515,9999.98,0.0001298,2]
[400356364,1767425610042,0.03,0.0001298,2]
[400356365,1767425610083,9999.97,0.0001298,2]
[400356366,1767425610165,-152.68,0.00013,2]
[400356367,1767425621842,2530.4,0.00013,2]
[400356368,1767425643108,7164.25,0.00013,2]
[400356369,1767425643136,2835.75,0.00013,2]
[400356370,1767425650939,7164.26,0.00013,2]
[400356371,1767425650965,2835.74,0.00013,2]
[400356372,1767425657966,7164.27,0.00013,2]
[400356373,1767425657992,2835.73,0.00013,2]
[400356374,1767425659438,-4567.1943955,0.00013245,2]
[400356375,1767425663769,865.621209,0.00013245,2]
[400356376,1767425663796,9134.378791,0.00013245,2]
[400356377,1767425675182,865.631209,0.00013245,2]
[400356378,1767425675209,2177.768791,0.00013245,2]
[400356380,1767425694515,10000.0,0.00012979,2]
[400356383,1767425703983,0.01,0.00012979,2]
[400356384,1767425704010,9999.99,0.00012979,2]
[400356385,1767425709782,0.02,0.00012979,2]
[400356386,1767425709811,9999.98,0.00012979,2]
[400356387,1767425716851,0.03,0.00012979,2]